bitfinex/quotes_BTCUSD_20250123
["timestamp","ask_amount","ask_price","bid_price","bid_amount"]
[1737642761430,0.09663,103490.0,103460.0,0.12805074]
[1737642761819,0.096615,103510.0,103470.0,0.43858439]
[1737642762019,0.193191,103530.0,103480.0,0.359908]
[1737642762260,0.38714729,103520.0,103480.0,0.11734729]
[1737642762465,0.096592,103530.0,103490.0,0.14734729]
[1737642762669,0.193219,103510.0,103480.0,0.02]
[1737642762878,0.29056629,103510.0,103470.0,0.02]
[1737642763078,0.09734729,103510.0,103470.0,0.11734729]
[1737642763283,0.096609,103510.0,103480.0,0.11734729]
[1737642763693,0.01023088,103540.0,103500.0,0.0468]
[1737642763893,0.09734729,103530.0,103500.0,0.0468]
[1737642764097,0.48373829,103530.0,103500.0,0.0468]
[1737642764291,0.000141,103510.0,103500.0,0.0468]
[1737642764500,0.193238,103500.0,103470.0,0.0470961]
[1737642764698,0.096637,103480.0,103470.0,0.0002961]
[1737642764850,0.19398429,103480.0,103470.0,0.0002961]
[1737642765059,0.19398429,103480.0,103470.0,0.00044684]
[1737642765060,0.096637,103480.0,103470.0,0.00044684]
[1737642765223,0.19398429,103480.0,103470.0,0.00044684]
[1737642765467,0.2813781,103510.0,103470.0,0.11779413]
[1737642765468,0.19337,103510.0,103470.0,0.11779413]
[1737642765659,0.09734729,103500.0,103470.0,0.00044684]
[1737642765878,0.096758,103510.0,103470.0,0.11779413]
[1737642766078,0.19410229,103510.0,103470.0,0.11779413]
[1737642766275,0.096633,103490.0,103470.0,0.00044684]
[1737642766476,0.193254,103500.0,103470.0,0.00044684]
[1737642766750,0.29059629,103500.0,103470.0,0.00044684]
[1737642766898,0.289981,103510.0,103470.0,0.11779413]
[1737642767109,0.48394629,103510.0,103470.0,0.11779413]
[1737642767470,0.19409829,103510.0,103470.0,0.11779413]
[1737642767791,0.000141,103510.0,103500.0,0.07]
[1737642767906,0.0001426,103540.0,103510.0,0.436408]
[1737642768111,0.00107,103550.0,103540.0,0.05]
[1737642768314,0.00107,103550.0,103540.0,0.324572]
[1737642768564,1.80312191,103600.0,103560.0,0.0463]
[1737642768888,0.027865,103680.0,103640.0,0.05]
[1737642769030,0.125,103700.0,103650.0,0.0963]
[1737642769227,0.125,103700.0,103650.0,0.16736473]
[1737642769228,0.19379229,103690.0,103650.0,0.16736473]
[1737642769431,0.00051212,103680.0,103650.0,0.29034729]
[1737642769638,0.00051212,103680.0,103650.0,0.24034729]
[1737642770058,0.09696312,103680.0,103650.0,0.12279999]
[1737642770317,0.09734729,103670.0,103650.0,0.12279999]
[1737642770430,0.09734729,103670.0,103650.0,0.0467]
[1737642770829,0.09734729,103660.0,103650.0,0.0467]
[1737642771027,0.09734729,103660.0,103610.0,0.0467]
[1737642771028,0.192986,103640.0,103610.0,0.0467]
[1737642771222,0.096506,103620.0,103610.0,0.0467]
[1737642771424,0.02,103680.0,103610.0,0.2812371]
[1737642771625,0.09734729,103660.0,103610.0,0.02812371]
[1737642771745,0.09734729,103650.0,103610.0,0.09734729]
[1737642772179,0.38678529,103650.0,103610.0,0.09734729]
[1737642772391,0.38681329,103640.0,103590.0,0.096533]
[1737642772598,0.2895831,103650.0,103610.0,0.05]
[1737642772821,0.35649028,103680.0,103660.0,0.05]
[1737642773041,0.003,103680.0,103670.0,0.09734729]
[1737642773274,0.003,103680.0,103640.0,0.0819]
[1737642773586,0.00051212,103650.0,103640.0,0.1319]
[1737642773914,0.00051212,103650.0,103640.0,0.0819]
[1737642774330,0.00051212,103650.0,103640.0,0.48892429]
[1737642774519,0.00051212,103650.0,103640.0,0.0819]
[1737642775165,0.00051212,103650.0,103640.0,0.17014729]
[1737642775366,0.125,103700.0,103680.0,0.05]
[1737642775604,0.125,103700.0,103680.0,0.14659874]
[1737642775913,0.125,103700.0,103680.0,0.19394603]
[1737642776118,0.125,103700.0,103680.0,0.24394303]
[1737642776286,0.125,103700.0,103690.0,0.72202539]
[1737642776488,0.02802531,103700.0,103690.0,0.79202539]
[1737642776698,0.0065083,103730.0,103720.0,0.146413]
[1737642777009,0.0065083,103730.0,103720.0,0.42858439]
[1737642777245,0.00185922,103740.0,103730.0,0.296404]
[1737642777421,0.001,103790.0,103780.0,0.146357]
[1737642777626,0.001,103790.0,103770.0,0.146359]
[1737642777834,0.001,103790.0,103760.0,0.5703411]
[1737642778049,0.00151277,103790.0,103760.0,0.47495739]
[1737642778217,0.192718,103780.0,103750.0,0.0453]
[1737642778481,0.29006429,103780.0,103730.0,0.05]
[1737642778615,0.192763,103760.0,103730.0,0.01890617]
[1737642778814,0.192763,103760.0,103710.0,0.1774]
[1737642779014,0.09734729,103780.0,103730.0,0.05]
[1737642779015,0.19371229,103780.0,103730.0,0.05]
[1737642779269,0.00151277,103790.0,103740.0,0.37858439]
[1737642779442,0.09734729,103780.0,103730.0,0.04276491]
[1737642779641,0.0717364,103800.0,103740.0,0.42858439]
[1737642779828,0.0717364,103800.0,103760.0,0.096375]
[1737642780029,0.0717364,103800.0,103770.0,0.14254729]
[1737642780252,0.16908369,103800.0,103770.0,0.0452]
[1737642780427,0.16908369,103800.0,103770.0,0.0952]
[1737642780652,0.16908369,103800.0,103770.0,0.0452]
[1737642780850,0.36176269,103800.0,103770.0,0.0452]
[1737642781102,0.192736,103770.0,103730.0,0.08796491]
[1737642781307,0.11734729,103760.0,103690.0,0.0952]
[1737642781520,0.439194,103740.0,103730.0,0.00051277]
[1737642781722,1.02293529,103740.0,103730.0,0.00051277]
[1737642781898,0.53654129,103740.0,103730.0,0.00051277]
[1737642782099,0.19374129,103740.0,103730.0,0.00051277]
[1737642782324,0.4,103770.0,103730.0,0.09701277]
[1737642782544,0.096377,103760.0,103740.0,0.09734729]
[1737642782703,0.096377,103760.0,103730.0,0.06488405]
[1737642782704,0.096394,103740.0,103730.0,0.00051277]
[1737642782916,0.21374129,103740.0,103730.0,0.00051277]
[1737642783122,0.4739031,103760.0,103730.0,0.00051277]
[1737642783296,0.19373629,103750.0,103730.0,0.00051277]
[1737642783500,0.096394,103740.0,103730.0,0.00051277]
[1737642783723,0.34374129,103740.0,103730.0,0.00051277]
[1737642783985,0.87528439,103740.0,103730.0,0.00051277]
[1737642784249,0.02,103710.0,103650.0,0.0997]
[1737642784432,0.37858439,103690.0,103650.0,0.0497]
[1737642784631,0.192935,103670.0,103650.0,0.00015074]
[1737642784805,0.09734729,103660.0,103650.0,0.05015074]
[1737642785010,0.289314,103700.0,103650.0,0.24397403]
[1737642785209,0.096462,103670.0,103650.0,0.00015074]
[1737642785410,0.19381629,103660.0,103650.0,0.00015074]
[1737642785712,0.21681629,103660.0,103650.0,0.00015074]
[1737642785862,0.59856329,103660.0,103650.0,0.00015074]
[1737642786088,0.59856329,103660.0,103570.0,0.2812371]
[1737642786089,0.096524,103610.0,103570.0,0.1269]
[1737642786411,0.096538,103590.0,103570.0,0.00051212]
[1737642786618,0.289583,103600.0,103570.0,0.00051212]
[1737642786820,0.289564,103610.0,103570.0,0.09785941]
[1737642787031,0.096518,103610.0,103570.0,0.14161325]
[1737642787241,0.192995,103630.0,103580.0,0.09734729]
[1737642787464,0.386001,103630.0,103590.0,0.14714729]
[1737642787667,0.29037529,103620.0,103590.0,0.0498]
[1737642787872,0.289485,103640.0,103600.0,0.09734729]
[1737642788114,0.38684129,103630.0,103590.0,0.19714729]
[1737642788337,0.385938,103650.0,103600.0,0.14734729]
[1737642788541,0.482317,103670.0,103620.0,0.096505]
[1737642788727,0.19085929,103660.0,103620.0,0.09734729]
[1737642788931,0.096465,103670.0,103630.0,0.09734729]
[1737642789154,0.6,103710.0,103650.0,0.146474]
[1737642789155,0.592849,103710.0,103650.0,0.146474]
[1737642789295,0.19378129,103700.0,103660.0,0.09734729]
[1737642789504,0.29021529,103700.0,103650.0,0.05]
[1737642789727,0.09642,103720.0,103670.0,0.146459]
[1737642789902,0.09642,103720.0,103680.0,0.24379529]
[1737642789903,0.09734729,103720.0,103680.0,0.24379529]
[1737642790114,0.01,103730.0,103690.0,0.14644]
[1737642790350,0.09734729,103720.0,103690.0,0.05]
[1737642790501,0.09734729,103720.0,103690.0,0.339318]
[1737642790737,0.09734729,103720.0,103690.0,0.05]
[1737642790935,0.09734729,103710.0,103660.0,0.324825]
[1737642791163,0.19377729,103710.0,103670.0,0.09734729]
[1737642791372,0.09734729,103710.0,103700.0,0.05]
[1737642791562,0.01,103730.0,103710.0,0.05]
[1737642791768,0.01,103730.0,103720.0,0.24376029]
[1737642791970,0.0099,103730.0,103720.0,0.46886029]
[1737642792340,0.0099,103730.0,103720.0,0.31886029]
[1737642793037,0.071877,103800.0,103760.0,0.339113]
[1737642793245,0.09734729,103790.0,103760.0,0.05]
[1737642793455,0.09734729,103790.0,103750.0,0.337447]
[1737642793660,0.09734729,103790.0,103750.0,0.0483]
[1737642793661,0.29005629,103790.0,103750.0,0.0483]
[1737642793871,0.29008029,103770.0,103720.0,0.0751]
[1737642794077,0.09734729,103780.0,103730.0,0.47498739]
[1737642794288,0.09734729,103760.0,103720.0,0.26886029]
[1737642794514,0.09734729,103760.0,103720.0,0.171506]
[1737642794723,0.071877,103800.0,103790.0,0.146348]
[1737642794944,0.0102021,103810.0,103800.0,0.146339]
[1737642795156,0.00952381,103850.0,103800.0,0.14734729]
[1737642795371,0.1068711,103850.0,103840.0,0.3312371]
[1737642795575,0.08247179,103860.0,103850.0,0.146292]
[1737642795997,0.08247179,103860.0,103850.0,0.24363929]
[1737642796224,0.08247179,103860.0,103850.0,0.24379014]
[1737642796435,0.0237261,103880.0,103870.0,0.05]
[1737642796648,0.0237261,103880.0,103870.0,0.42858439]
[1737642797498,0.0237261,103880.0,103870.0,0.2812371]
[1737642797707,0.0237261,103880.0,103870.0,0.37858439]
[1737642797918,0.0237261,103880.0,103870.0,0.3312371]
[1737642798125,0.12107339,103880.0,103870.0,0.2812371]
[1737642798540,0.12107339,103880.0,103850.0,0.05015085]
[1737642798541,0.0237261,103880.0,103850.0,0.05015085]
[1737642798761,0.09734729,103870.0,103850.0,0.00015085]
[1737642799172,0.0237261,103880.0,103850.0,0.00015085]
[1737642799381,0.19363029,103860.0,103850.0,0.00015085]
[1737642799593,0.36354216,103860.0,103850.0,0.00015085]
[1737642800016,0.36354216,103860.0,103760.0,0.0475]
[1737642800017,0.19264,103830.0,103760.0,0.143875]
[1737642800230,0.192696,103790.0,103760.0,0.00015087]
[1737642800440,0.192715,103780.0,103760.0,0.00015087]
[1737642800654,0.19371329,103770.0,103760.0,0.00015087]
[1737642800882,0.32171329,103770.0,103760.0,0.00015087]
[1737642801101,0.192847,103710.0,103650.0,0.2812371]
[1737642801307,0.09734729,103710.0,103680.0,0.146447]
[1737642801512,0.09734729,103710.0,103670.0,0.30866571]
[1737642801728,0.09734729,103710.0,103660.0,0.09734729]
[1737642801729,0.09734729,103690.0,103650.0,0.00051286]
[1737642801952,0.096432,103700.0,103660.0,0.14734729]
[1737642802165,0.09734729,103690.0,103650.0,0.28993986]
[1737642802375,0.09734729,103680.0,103650.0,0.00051286]
[1737642802640,0.29024929,103680.0,103650.0,0.00051286]
[1737642802853,0.29024829,103680.0,103650.0,0.00047286]
[1737642803068,0.09734729,103680.0,103650.0,0.05047286]
[1737642803299,0.096433,103700.0,103660.0,0.14734729]
[1737642803503,0.09734729,103690.0,103650.0,0.09695086]
[1737642803704,0.09734729,103690.0,103650.0,0.00047286]
[1737642803705,0.096452,103680.0,103650.0,0.00047286]
[1737642803924,0.09734729,103670.0,103650.0,0.00047286]
[1737642804332,0.482239,103690.0,103650.0,0.00047286]
[1737642804562,0.038589,103720.0,103690.0,0.096434]
[1737642804769,0.192733,103770.0,103720.0,0.05]
[1737642804971,0.192715,103780.0,103700.0,0.05]
[1737642804972,0.48290229,103750.0,103700.0,0.05]
[1737642805179,0.48290229,103750.0,103710.0,0.14734729]
[1737642805180,0.09734729,103750.0,103710.0,0.14734729]
[1737642805381,0.09734729,103750.0,103730.0,0.05]
[1737642805583,0.192733,103770.0,103730.0,0.05]
[1737642805786,0.192728,103780.0,103730.0,0.00051286]
[1737642805787,0.19374129,103750.0,103730.0,0.00051286]
[1737642806021,0.19374129,103740.0,103730.0,0.00051286]
[1737642806627,0.192758,103760.0,103730.0,0.00051286]
[1737642806832,0.19373329,103750.0,103730.0,0.00051286]
[1737642807252,0.19374129,103740.0,103730.0,0.00051286]
[1737642807749,0.289142,103760.0,103730.0,0.00051286]
[1737642808031,0.09734729,103760.0,103730.0,0.05051286]
[1737642808587,0.38651229,103750.0,103730.0,0.00051286]
[1737642808823,0.096394,103740.0,103730.0,0.00051286]
[1737642808987,0.19374129,103740.0,103730.0,0.00051286]
[1737642809192,0.09234729,103740.0,103730.0,0.00051286]
[1737642809425,0.18874129,103740.0,103730.0,0.00051286]
[1737642809631,0.51805129,103740.0,103730.0,0.00051286]
[1737642809828,0.38174129,103740.0,103730.0,0.00051286]
[1737642810033,0.53361429,103740.0,103730.0,0.00051286]
[1737642810250,0.19374129,103740.0,103730.0,0.00051286]
[1737642810590,0.09734729,103740.0,103730.0,0.00051286]
[1737642810789,0.192755,103760.0,103730.0,0.00051286]
[1737642810970,0.38650429,103750.0,103730.0,0.00051286]
[1737642811205,0.114394,103740.0,103730.0,0.00151286]
[1737642811420,0.21174129,103740.0,103730.0,0.00151286]
[1737642811626,0.43443629,103740.0,103730.0,0.00151286]
[1737642811850,0.58443629,103740.0,103730.0,0.00151286]
[1737642812060,0.096451,103680.0,103650.0,0.1259]
[1737642812263,0.19380829,103670.0,103660.0,0.00015114]
[1737642813095,0.34852529,103670.0,103660.0,0.00015114]
[1737642813274,0.19380629,103670.0,103660.0,0.00015114]
[1737642813724,0.65068729,103670.0,103660.0,0.00015114]
[1737642813947,0.65068729,103670.0,103610.0,0.00029757]
[1737642813948,0.096506,103620.0,103610.0,0.00029757]
[1737642814163,0.19385329,103620.0,103610.0,0.00080969]
[1737642814831,0.09734729,103620.0,103610.0,0.00080969]
[1737642815042,0.192969,103650.0,103610.0,0.00080969]
[1737642815262,0.19383729,103640.0,103610.0,0.05080969]
[1737642815663,0.096501,103630.0,103610.0,0.00080969]
[1737642815885,0.09734729,103620.0,103610.0,0.00080969]
[1737642816095,0.38683829,103630.0,103610.0,0.00080969]
[1737642816312,0.09734729,103630.0,103580.0,0.24106874]
[1737642816516,0.289549,103610.0,103570.0,0.17314526]
[1737642816733,0.09734729,103620.0,103570.0,0.00029526]
[1737642816734,0.09734729,103600.0,103570.0,0.00029526]
[1737642816939,0.193069,103590.0,103570.0,0.00029526]
[1737642817142,0.09734729,103580.0,103570.0,0.00029526]
[1737642817386,0.19389029,103580.0,103570.0,0.00029526]
[1737642817591,0.096562,103560.0,103550.0,0.00029736]
[1737642817810,0.19390929,103560.0,103550.0,0.00029736]
[1737642818212,0.21390929,103560.0,103550.0,0.00029736]
[1737642818419,1.06296882,103560.0,103550.0,0.00029736]
[1737642818658,0.60227282,103560.0,103550.0,0.00029736]
[1737642818860,0.57236082,103560.0,103550.0,0.00029736]
[1737642819081,0.90359792,103560.0,103550.0,0.00029736]
[1737642819298,0.11659,103530.0,103520.0,6e-05]
[1737642819504,0.21393729,103530.0,103520.0,6e-05]
[1737642819711,0.09734729,103530.0,103520.0,6e-05]
[1737642819918,0.00051153,103560.0,103540.0,0.238762]
[1737642820131,0.20264,103620.0,103550.0,0.37858439]
[1737642820132,0.10264,103620.0,103550.0,0.37858439]
[1737642820338,0.10264,103620.0,103570.0,0.3777861]
[1737642820339,0.19386429,103610.0,103570.0,0.3777861]
[1737642820507,0.09734729,103610.0,103570.0,0.57168839]
[1737642820715,0.09734729,103610.0,103570.0,0.76478039]
[1737642820917,0.19386629,103610.0,103560.0,0.386221]
[1737642821140,0.19386629,103610.0,103550.0,0.5709421]
[1737642821141,0.09734729,103600.0,103550.0,0.5709421]
[1737642821343,0.09734729,103600.0,103560.0,0.193124]
[1737642821536,0.09734729,103600.0,103560.0,0.48358329]
[1737642821768,0.09734729,103590.0,103550.0,0.5709311]
[1737642821894,0.193089,103580.0,103540.0,0.04611153]
[1737642822099,0.19390729,103570.0,103540.0,0.00051153]
[1737642822303,0.09734729,103560.0,103540.0,0.00051153]
[1737642822617,0.193062,103600.0,103540.0,0.00051153]
[1737642822805,0.09734729,103580.0,103540.0,0.00051153]
[1737642823168,0.096567,103560.0,103540.0,0.00051153]
[1737642823302,0.09734729,103560.0,103540.0,0.00051153]
[1737642823516,0.09734729,103550.0,103540.0,0.00051153]
[1737642823719,0.339647,103580.0,103540.0,0.00051153]
[1737642823920,0.09734729,103570.0,103550.0,0.096569]
[1737642824170,0.28956,103610.0,103560.0,0.193123]
[1737642824498,0.09734729,103610.0,103570.0,0.2812371]
[1737642824687,0.09734729,103600.0,103560.0,0.096553]
[1737642824897,0.19387229,103600.0,103560.0,0.09656]
[1737642825430,0.01,103620.0,103570.0,0.09734729]
[1737642825634,0.01,103620.0,103540.0,0.13211153]
[1737642825635,0.01,103620.0,103610.0,0.5277521]
[1737642825843,0.192901,103680.0,103640.0,0.2812371]
[1737642826098,0.19381029,103670.0,103640.0,0.02812371]
[1737642826270,0.29028629,103660.0,103600.0,0.5535841]
[1737642826493,0.19383729,103640.0,103600.0,0.0793]
[1737642826698,0.096498,103630.0,103580.0,0.5210121]
[1737642826815,0.29035229,103630.0,103600.0,0.00015116]
[1737642827034,0.09734729,103610.0,103600.0,0.00015116]
[1737642827248,0.22286229,103610.0,103600.0,0.00015116]
[1737642827458,0.58862629,103610.0,103600.0,0.00015116]
[1737642827672,0.12868021,103640.0,103600.0,0.37791326]
[1737642827885,0.19384429,103630.0,103600.0,0.00015116]
[1737642828092,0.09734729,103630.0,103600.0,0.00015116]
[1737642829115,0.29035329,103630.0,103600.0,0.00015116]
[1737642829369,0.57986029,103630.0,103600.0,0.00015116]
[1737642829591,0.19386229,103610.0,103600.0,0.00015116]
[1737642829794,0.03219221,103640.0,103600.0,0.00015116]
[1737642830033,0.09734729,103610.0,103600.0,0.00015116]
[1737642830474,0.22659702,103610.0,103600.0,0.00015116]
[1737642830686,0.20359702,103610.0,103600.0,0.00015116]
[1737642831139,0.51465321,103640.0,103600.0,0.00015116]
[1737642831342,0.09734729,103630.0,103600.0,0.00015116]
[1737642831548,0.09734729,103610.0,103600.0,0.00015116]
[1737642831675,0.19386229,103610.0,103600.0,0.00015116]
[1737642832764,0.09734729,103610.0,103600.0,0.00015116]
[1737642833073,0.412977,103640.0,103600.0,0.00015116]
[1737642833074,0.192987,103640.0,103600.0,0.00015116]
[1737642833402,0.09734729,103610.0,103600.0,0.00015116]
[1737642833850,0.19386229,103610.0,103600.0,0.00015116]
[1737642834024,0.09734729,103610.0,103600.0,0.00015116]
[1737642834657,0.12,103660.0,103600.0,0.00015116]
[1737642834867,0.19383629,103640.0,103600.0,0.28970816]
[1737642835068,0.289502,103630.0,103600.0,0.00015116]
[1737642835276,0.09734729,103620.0,103600.0,0.00015116]
[1737642835846,0.09734729,103620.0,103600.0,0.28971716]
[1737642836059,0.12881994,103680.0,103600.0,0.37873555]
[1737642836315,0.12881994,103680.0,103630.0,0.2812371]
[1737642836316,0.09734729,103660.0,103630.0,0.2812371]
[1737642836521,0.09734729,103660.0,103650.0,0.3777151]
[1737642836722,0.038599,103690.0,103650.0,0.2812371]
[1737642836950,0.096475,103660.0,103630.0,0.0471]
[1737642837153,0.2703,103680.0,103610.0,0.2812371]
[1737642837154,0.38678329,103650.0,103610.0,0.2812371]
[1737642837447,0.57974029,103650.0,103610.0,0.3777521]
[1737642837717,0.02,103670.0,103610.0,0.3981582]
[1737642837718,0.192925,103670.0,103610.0,0.3981582]
[1737642837827,0.38676229,103660.0,103610.0,0.68783736]
[1737642838029,0.09734729,103660.0,103620.0,0.096506]
[1737642838235,0.29028529,103660.0,103610.0,0.30096207]
[1737642838460,0.29028529,103660.0,103610.0,0.00015116]
[1737642838461,0.09734729,103650.0,103610.0,0.00015116]
[1737642838667,0.09734729,103650.0,103610.0,0.28138826]
[1737642838868,0.096489,103640.0,103610.0,0.00015116]
[1737642839077,0.09734729,103630.0,103610.0,0.00015116]
[1737642839290,0.01007572,103700.0,103660.0,0.289398]
[1737642839529,0.09734729,103690.0,103650.0,0.09647]
[1737642839734,0.0001426,103660.0,103650.0,0.289424]
[1737642840476,0.0001426,103660.0,103650.0,0.38677129]
[1737642840629,0.0001426,103660.0,103650.0,0.46492245]
[1737642840838,0.0001426,103660.0,103650.0,0.48292488]
[1737642841017,0.578465,103730.0,103680.0,0.289344]
[1737642841284,0.32719417,103720.0,103670.0,0.289359]
[1737642841458,0.09734729,103710.0,103670.0,0.289377]
[1737642841668,0.19377329,103710.0,103670.0,0.096459]
[1737642841861,0.19377329,103710.0,103660.0,0.482313]
[1737642842062,0.09734729,103700.0,103650.0,0.27109416]
[1737642842322,0.09734729,103700.0,103650.0,0.36756916]
[1737642842323,0.48309129,103700.0,103650.0,0.36756916]
[1737642842532,0.09734729,103690.0,103650.0,0.07815116]
[1737642842742,0.41825598,103720.0,103660.0,0.37858439]
[1737642842743,0.03701888,103720.0,103660.0,0.37858439]
[1737642842958,0.09734729,103710.0,103680.0,0.289344]
[1737642843311,0.09734729,103710.0,103690.0,0.09644]
[1737642843515,0.03701888,103720.0,103700.0,0.096431]
[1737642843885,0.03701888,103720.0,103710.0,0.096422]
[1737642844080,0.03701888,103720.0,103710.0,0.19376929]
[1737642844196,0.03701888,103720.0,103710.0,0.26966929]
[1737642844396,0.03701888,103720.0,103710.0,0.172322]
[1737642844669,0.03753138,103720.0,103710.0,0.0759]
[1737642845167,0.03753138,103720.0,103710.0,0.172322]
[1737642845372,0.03753138,103720.0,103710.0,0.26966929]
[1737642845754,0.03753138,103720.0,103710.0,0.172322]
[1737642845969,0.13487867,103720.0,103690.0,0.33611]
[1737642846168,0.09734729,103710.0,103680.0,0.09115768]
[1737642846383,0.09734729,103710.0,103680.0,0.28405768]
[1737642846702,0.03753138,103720.0,103690.0,0.289321]
[1737642846913,0.09785979,103720.0,103690.0,0.28932]
[1737642847117,0.09734729,103710.0,103680.0,0.09115768]
[1737642847321,0.40604667,103710.0,103680.0,0.00815768]
[1737642847649,0.40604667,103710.0,103670.0,0.28937]
[1737642847650,0.11677467,103710.0,103670.0,0.28937]
[1737642847856,0.0005125,103720.0,103700.0,0.096427]
[1737642848064,0.0005125,103720.0,103710.0,0.096422]
[1737642848282,0.0001425,103740.0,103730.0,0.096404]
[1737642848491,0.006954,103770.0,103760.0,0.3776131]
[1737642848916,0.006954,103770.0,103760.0,0.47496039]
[1737642849131,0.006954,103770.0,103760.0,0.83317796]
[1737642849512,0.08247179,103820.0,103810.0,0.096329]
[1737642849756,0.08247179,103820.0,103790.0,0.4739191]
[1737642849757,0.17996098,103820.0,103790.0,0.4739191]
[1737642849966,0.17996098,103820.0,103810.0,0.37771726]
[1737642849967,0.08261369,103820.0,103810.0,0.37771726]
[1737642850181,0.08261369,103820.0,103810.0,0.66283721]
[1737642850570,0.08261369,103820.0,103810.0,0.62142688]
[1737642850880,0.0001419,103820.0,103810.0,0.49871726]
[1737642851205,0.0001419,103820.0,103810.0,0.59606455]
[1737642851406,0.0001419,103820.0,103810.0,0.49871726]
[1737642851863,0.09748919,103820.0,103810.0,0.00015116]
[1737642852641,0.09748919,103820.0,103810.0,0.47506455]
[1737642852642,0.0001419,103820.0,103810.0,0.47506455]
[1737642852844,0.0001419,103820.0,103810.0,0.44006455]
[1737642853046,0.0001419,103820.0,103810.0,0.59006455]
[1737642853251,0.0001419,103830.0,103820.0,0.22602]
[1737642853452,0.0001419,103830.0,103820.0,0.32336729]
[1737642853654,0.0001419,103830.0,103820.0,0.42071458]
[1737642854110,0.0001419,103830.0,103820.0,0.44071458]
[1737642854341,0.0001423,103850.0,103820.0,0.44071458]
[1737642854342,0.0001423,103850.0,103840.0,0.096302]
[1737642854533,0.0001423,103850.0,103840.0,0.47488639]
[1737642855591,0.0001423,103850.0,103820.0,0.7961881]
[1737642855894,0.0001423,103850.0,103840.0,0.3775391]
[1737642856246,1e-08,103850.0,103840.0,0.48049048]
[1737642856494,1e-08,103850.0,103840.0,0.2812371]
[1737642856700,1e-08,103850.0,103830.0,0.288929]
[1737642856992,1e-08,103850.0,103840.0,0.2812371]
[1737642857219,1e-08,103850.0,103840.0,0.45391934]
[1737642857392,1e-08,103850.0,103840.0,0.49488639]
[1737642857607,1e-08,103850.0,103840.0,0.63609457]
[1737642857812,1e-08,103850.0,103840.0,0.47488639]
[1737642858015,0.015635,103870.0,103840.0,0.38979257]
[1737642858199,0.015635,103870.0,103850.0,0.288869]
[1737642858404,0.015635,103870.0,103860.0,0.096283]
[1737642858543,0.015635,103870.0,103850.0,0.49371547]
[1737642858795,0.00517449,103870.0,103860.0,0.41455603]
[1737642859012,0.00517449,103870.0,103860.0,0.51190332]
[1737642859219,0.00517449,103870.0,103860.0,0.60925061]
[1737642859441,0.00568806,103870.0,103860.0,0.60925061]
[1737642859644,0.00568806,103870.0,103860.0,0.19363029]
[1737642859865,0.0018919,103880.0,103870.0,0.096274]
[1737642860049,0.0018919,103880.0,103870.0,0.20359299]
[1737642860613,0.0018919,103880.0,103870.0,0.19377255]
[1737642861576,0.0018919,103880.0,103870.0,0.09642526]
[1737642861774,0.0018919,103880.0,103870.0,0.00015126]
[1737642861975,0.09923919,103880.0,103870.0,0.00015126]
[1737642862411,0.19550319,103880.0,103870.0,0.00015126]
[1737642862632,0.09923919,103880.0,103870.0,0.00015126]
[1737642862766,0.0018919,103880.0,103870.0,0.00015126]
[1737642862961,0.0018919,103880.0,103850.0,0.38508314]
[1737642863189,0.09734729,103870.0,103850.0,0.00051357]
[1737642863464,0.09734729,103870.0,103850.0,0.00047357]
[1737642864130,0.2906869,103880.0,103850.0,0.00047357]
[1737642864131,0.0018919,103880.0,103850.0,0.09676457]
[1737642864356,0.0018919,103880.0,103860.0,0.096279]
[1737642864597,0.0018919,103880.0,103860.0,0.38618629]
[1737642864809,0.250447,103900.0,103870.0,0.09734729]
[1737642865012,0.250447,103900.0,103880.0,0.288771]
[1737642865225,0.09734729,103890.0,103850.0,0.19304457]
[1737642865434,0.09734729,103890.0,103860.0,0.096275]
[1737642865638,0.09734729,103880.0,103860.0,0.0188343]
[1737642866061,0.250447,103900.0,103870.0,0.37858439]
[1737642866269,0.250447,103900.0,103890.0,0.3774921]
[1737642866502,0.250447,103900.0,103890.0,0.47483939]
[1737642866710,0.250447,103900.0,103890.0,0.19360229]
[1737642866920,0.250447,103900.0,103890.0,0.096255]
[1737642867545,0.34779429,103900.0,103890.0,0.00015129]
[1737642868186,0.44404029,103900.0,103890.0,0.00015129]
[1737642868420,0.250447,103900.0,103890.0,0.00015129]
[1737642868634,0.02,103910.0,103900.0,0.246246]
[1737642868845,6e-05,103950.0,103940.0,0.096209]
[1737642869060,6e-05,103950.0,103940.0,0.19355629]
[1737642869282,6e-05,103950.0,103940.0,0.096209]
[1737642869497,0.09740729,103950.0,103900.0,0.09734729]
[1737642869713,0.09740729,103950.0,103920.0,0.096221]
[1737642869930,0.09740729,103950.0,103920.0,0.288663]
[1737642870136,6e-05,103950.0,103920.0,0.481109]
[1737642870349,6e-05,103950.0,103930.0,0.38598229]
[1737642870553,6e-05,103950.0,103930.0,0.288639]
[1737642870763,6e-05,103950.0,103930.0,0.481066]
[1737642870986,6e-05,103950.0,103940.0,0.19355629]
[1737642871194,0.09740729,103950.0,103920.0,0.20074897]
[1737642871349,0.09740729,103950.0,103920.0,0.48941997]
[1737642871552,0.20239125,103990.0,103920.0,0.48941997]
[1737642871553,0.7533227,104010.0,104000.0,5.19868292]
[1737642871797,1.00175099,104010.0,104000.0,4.83073251]
[1737642871974,0.66715999,104010.0,104000.0,4.83073251]
[1737642872180,0.70563999,104010.0,104000.0,4.83073251]
[1737642872383,0.95872299,104010.0,104000.0,4.83073251]
[1737642872787,0.42491754,104010.0,104000.0,4.83073251]
[1737642873014,0.84142764,104010.0,104000.0,4.83073251]
[1737642873162,0.41438925,104010.0,104000.0,4.83073251]
[1737642873362,0.10100354,104010.0,104000.0,4.83073251]
[1737642873575,0.09900354,104010.0,104000.0,4.83073251]
[1737642873832,0.19514754,104010.0,104000.0,4.83073251]
[1737642874007,0.19414754,104010.0,104000.0,4.9280798]
[1737642874230,0.00065625,104010.0,104000.0,4.83073251]
[1737642874489,0.09734729,104010.0,104000.0,4.83073251]
[1737642875600,0.34349129,104010.0,104000.0,4.83073251]
[1737642875937,0.46144329,104010.0,104000.0,4.83073251]
[1737642876057,0.46144329,104010.0,104000.0,4.8242626]
[1737642876259,0.56144329,104010.0,104000.0,4.76892014]
[1737642876458,0.56144329,104010.0,104000.0,4.56170422]
[1737642876459,0.68444329,104010.0,104000.0,4.56170422]
[1737642876700,0.68444329,104010.0,104000.0,4.1372875]
[1737642877219,0.48458539,104010.0,104000.0,4.1372875]
[1737642877663,0.34363339,104010.0,104000.0,4.1372875]
[1737642877883,0.51137739,104010.0,104000.0,4.1372875]
[1737642878090,0.51137739,104010.0,104000.0,4.1272875]
[1737642878297,0.57797039,104010.0,104000.0,4.1272875]
[1737642878537,0.67797039,104010.0,104000.0,4.1172775]